fUST/lending_fUST_20260603
["ID","MTS","AMOUNT","RATE_DAILY","PERIOD"]
[423779786,1780422650000,-733.53,0.00016712,2]
[423779784,1780422650000,-500.0,0.00016712,2]
[423779779,1780422650000,-422.48,0.00016712,2]
[423779778,1780422650000,-500.0,0.00016712,2]
[423779782,1780422650000,-500.0,0.00016712,2]
[423779773,1780422650000,-151.0,0.00016438,2]
[423779788,1780422650000,-500.0,0.00016712,2]
[423779783,1780422650000,-500.0,0.00016712,2]
[423779785,1780422650000,-500.0,0.00016712,2]
[423779790,1780422650000,-990.06,0.00016712,2]
[423779793,1780422650000,-500.0,0.00016712,2]
[423779789,1780422650000,-856.75,0.00016712,2]
[423779794,1780422650000,-539.15,0.00016712,2]
[423779791,1780422650000,-500.0,0.00016712,2]
[423779792,1780422650000,-500.0,0.00016712,2]
[423779795,1780422650000,-500.0,0.00016712,2]
[423779799,1780422650000,-500.0,0.00016712,2]
[423779803,1780422650000,-2279.37,0.00016712,2]
[423779810,1780422650000,-500.0,0.00016986,2]
[423779801,1780422650000,-500.0,0.00016712,2]
[423779805,1780422650000,-500.0,0.00016986,2]
[423779802,1780422650000,-500.0,0.00016712,2]
[423779809,1780422650000,-500.0,0.00016986,2]
[423779775,1780422650000,-282.0,0.00016521,2]
[423779787,1780422650000,-500.0,0.00016712,2]
[423779774,1780422650000,-209.212101,0.00016438,2]
[423779743,1780422650000,-387.92,0.00016438,2]
[423779776,1780422650000,-1457.42,0.000166,2]
[423779800,1780422650000,-500.0,0.00016712,2]
[423779744,1780422650000,-387.92,0.00016438,2]
[423779745,1780422650000,-387.92,0.00016438,2]
[423779746,1780422650000,-387.92,0.00016438,2]
[423779749,1780422650000,-387.92,0.00016438,2]
[423779747,1780422650000,-387.92,0.00016438,2]
[423779752,1780422650000,-387.92,0.00016438,2]
[423779750,1780422650000,-387.92,0.00016438,2]
[423779751,1780422650000,-387.92,0.00016438,2]
[423779748,1780422650000,-387.92,0.00016438,2]
[423779753,1780422650000,-387.92,0.00016438,2]
[423779756,1780422650000,-151.0,0.00016438,2]
[423779755,1780422650000,-387.92,0.00016438,2]
[423779754,1780422650000,-387.92,0.00016438,2]
[423779777,1780422650000,-500.0,0.00016712,2]
[423779757,1780422650000,-151.0,0.00016438,2]
[423779758,1780422650000,-151.0,0.00016438,2]
[423779769,1780422650000,-151.0,0.00016438,2]
[423779770,1780422650000,-151.0,0.00016438,2]
[423779760,1780422650000,-151.0,0.00016438,2]
[423779761,1780422650000,-160.664216,0.00016438,2]
[423779771,1780422650000,-151.0,0.00016438,2]
[423779764,1780422650000,-151.0,0.00016438,2]
[423779765,1780422650000,-151.0,0.00016438,2]
[423779763,1780422650000,-151.0,0.00016438,2]
[423779766,1780422650000,-151.0,0.00016438,2]
[423779762,1780422650000,-153.817786,0.00016438,2]
[423779768,1780422650000,-151.0,0.00016438,2]
[423779767,1780422650000,-186.260763,0.00016438,2]
[423779772,1780422650000,-151.0,0.00016438,2]
[423779759,1780422650000,-151.0,0.00016438,2]
[423779806,1780422650000,-500.0,0.00016986,2]
[423779864,1780422650000,-500.0,0.0001726,2]
[423779804,1780422650000,-1116.59,0.00016712,2]
[423779842,1780422650000,-161.28533981,0.00017122,2]
[423779848,1780422650000,-331.85878402,0.00017122,2]
[423779844,1780422650000,-313.16822931,0.00017122,2]
[423779846,1780422650000,-186.74787766,0.00017122,2]
[423779843,1780422650000,-180.17536648,0.00017122,2]
[423779849,1780422650000,-500.0,0.00017218,2]
[423779847,1780422650000,-210.50530933,0.00017122,2]
[423779845,1780422650000,-206.27110622,0.00017122,2]
[423779862,1780422650000,-990.06,0.0001726,2]
[423779856,1780422650000,-500.0,0.0001726,2]
[423779853,1780422650000,-429.89,0.0001726,2]
[423779852,1780422650000,-500.0,0.0001726,2]
[423779863,1780422650000,-500.0,0.0001726,2]
[423779859,1780422650000,-733.53,0.0001726,2]
[423779855,1780422650000,-500.0,0.0001726,2]
[423779861,1780422650000,-856.75,0.0001726,2]
[423779854,1780422650000,-516.55,0.0001726,2]
[423779857,1780422650000,-500.0,0.0001726,2]
[423779858,1780422650000,-500.0,0.0001726,2]
[423779860,1780422650000,-500.0,0.0001726,2]
[423779865,1780422650000,-539.15,0.0001726,2]
[423779866,1780422650000,-500.0,0.0001726,2]
[423779867,1780422650000,-500.0,0.0001726,2]
[423779872,1780422650000,-1116.59,0.0001726,2]
[423779868,1780422650000,-500.0,0.0001726,2]
[423779869,1780422650000,-642.35,0.0001726,2]
[423779811,1780422650000,-500.0,0.00016986,2]
[423779871,1780422650000,-2279.37,0.0001726,2]
[423779873,1780422650000,-500.0,0.00017534,2]
[423779841,1780422650000,-336.79065569,0.00017122,2]
[423779851,1780422650000,-737.852,0.00017218,2]
[423779870,1780422650000,-500.0,0.0001726,2]
[423779850,1780422650000,-500.0,0.00017218,2]
[423779839,1780422650000,-329.73549887,0.00017118,2]
[423779807,1780422650000,-516.55,0.00016986,2]
[423779813,1780422650000,-500.0,0.00016986,2]
[423779823,1780422650000,-500.0,0.00016986,2]
[423779824,1780422650000,-153.24,0.00016986,2]
[423779825,1780422650000,-500.0,0.00016986,2]
[423779812,1780422650000,-733.53,0.00016986,2]
[423779815,1780422650000,-856.75,0.00016986,2]
[423779819,1780422650000,-539.15,0.00016986,2]
[423779822,1780422650000,-500.0,0.00016986,2]
[423779821,1780422650000,-500.0,0.00016986,2]
[423779820,1780422650000,-225.3,0.00016986,2]
[423779817,1780422650000,-500.0,0.00016986,2]
[423779818,1780422650000,-500.0,0.00016986,2]
[423779816,1780422650000,-990.06,0.00016986,2]
[423779808,1780422650000,-500.0,0.00016986,2]
[423779826,1780422650000,-500.0,0.00016986,2]
[423779836,1780422650000,-163.62256323,0.00017103,2]
[423779814,1780422650000,-500.0,0.00016986,2]
[423779835,1780422650000,-163.67111506,0.00017103,2]
[423779832,1780422650000,-200.7024082,0.00017103,2]
[423779834,1780422650000,-190.4331805,0.00017103,2]
[423779833,1780422650000,-177.85138657,0.00017103,2]
[423779838,1780422650000,-348.56928207,0.00017118,2]
[423779840,1780422650000,-194.97286168,0.00017122,2]
[423779829,1780422650000,-2027.76,0.00017,2]
[423779837,1780422650000,-164.9895552,0.00017103,2]
[423779830,1780422650000,-165.73990047,0.00017089,2]
[423779827,1780422650000,-2279.37,0.00016986,2]
[423779828,1780422650000,-1116.59,0.00016986,2]
[423779831,1780422650000,-464.01461129,0.00017092,2]
[423779904,1780422651000,-322.57067962,0.00017651,2]
[423779911,1780422651000,-497.78817602,0.00017651,2]
[423779909,1780422651000,-373.49575532,0.00017651,2]
[423779908,1780422651000,-412.54221244,0.00017651,2]
[423779907,1780422651000,-469.75234396,0.00017651,2]
[423779913,1780422651000,-516.55,0.00017808,2]
[423779910,1780422651000,-421.01061867,0.00017651,2]
[423779915,1780422651000,-500.0,0.00017808,2]
[423779917,1780422651000,-733.53,0.00017808,2]
[423779914,1780422651000,-500.0,0.00017808,2]
[423779919,1780422651000,-856.75,0.00017808,2]
[423779912,1780422651000,-500.0,0.00017808,2]
[423779906,1780422651000,-360.35073295,0.00017651,2]
[423779920,1780422651000,-990.06,0.00017808,2]
[423779921,1780422651000,-500.0,0.00017808,2]
[423779922,1780422651000,-500.0,0.00017808,2]
[423779925,1780422651000,-500.0,0.00017808,2]
[423779923,1780422651000,-539.15,0.00017808,2]
[423779918,1780422651000,-500.0,0.00017808,2]
[423779927,1780422651000,-500.0,0.00017808,2]
[423779926,1780422651000,-291.76,0.00017808,2]
[423779929,1780422651000,-1116.59,0.00017808,2]
[423779939,1780422651000,-533.5541597,0.00017983,2]
[423779934,1780422651000,-197.38306847,0.00017971,2]
[423779940,1780422651000,-571.29954149,0.00017983,2]
[423779916,1780422651000,-500.0,0.00017808,2]
[423779930,1780422651000,-151.0,0.000179,2]
[423779924,1780422651000,-500.0,0.00017808,2]
[423779905,1780422651000,-205.98740711,0.00017651,2]
[423779890,1780422651000,-1116.59,0.00017534,2]
[423779898,1780422651000,-327.24512646,0.00017631,2]
[423779937,1780422651000,-491.01334519,0.00017971,2]
[423779876,1780422651000,-500.0,0.00017534,2]
[423779875,1780422651000,-500.0,0.00017534,2]
[423779877,1780422651000,-500.0,0.00017534,2]
[423779874,1780422651000,-516.55,0.00017534,2]
[423779881,1780422651000,-990.06,0.00017534,2]
[423779878,1780422651000,-733.53,0.00017534,2]
[423779880,1780422651000,-856.75,0.00017534,2]
[423779879,1780422651000,-500.0,0.00017534,2]
[423779882,1780422651000,-500.0,0.00017534,2]
[423779884,1780422651000,-539.15,0.00017534,2]
[423779886,1780422651000,-500.0,0.00017534,2]
[423779883,1780422651000,-500.0,0.00017534,2]
[423779887,1780422651000,-500.0,0.00017534,2]
[423779889,1780422651000,-2279.37,0.00017534,2]
[423779888,1780422651000,-500.0,0.00017534,2]
[423779902,1780422651000,-389.94572336,0.00017651,2]
[423779901,1780422651000,-494.6032483,0.00017646,2]
[423779903,1780422651000,-505.18598353,0.00017651,2]
[423779892,1780422651000,-696.02191693,0.00017619,2]
[423779894,1780422651000,-355.70277313,0.00017631,2]
[423779891,1780422651000,-331.47980095,0.00017617,2]
[423779895,1780422651000,-380.86636099,0.00017631,2]
[423779893,1780422651000,-401.4048164,0.00017631,2]
[423779896,1780422651000,-222.34543475,0.00017631,2]
[423779897,1780422651000,-327.34223012,0.00017631,2]
[423779899,1780422651000,-329.97911041,0.00017631,2]
[423779900,1780422651000,-522.8539231,0.00017646,2]
[423779936,1780422651000,-928.02922258,0.00017971,2]
[423779885,1780422651000,-500.0,0.00017534,2]
[423779932,1780422651000,-497.21970142,0.00017969,2]
[423779969,1780422651000,-856.75,0.00018082,2]
[423779967,1780422651000,-733.53,0.00018082,2]
[423779968,1780422651000,-500.0,0.00018082,2]
[423779970,1780422651000,-990.06,0.00018082,2]
[423779971,1780422651000,-500.0,0.00018082,2]
[423779974,1780422651000,-500.0,0.00018082,2]
[423779976,1780422651000,-500.0,0.00018082,2]
[423779979,1780422651000,-183.01928114,0.0001821,2]
[423779975,1780422651000,-500.0,0.00018082,2]
[423779977,1780422651000,-2279.37,0.00018082,2]
[423779978,1780422651000,-1116.59,0.00018082,2]
[423779985,1780422651000,-824.33874717,0.00018351,2]
[423779981,1780422651000,-175.22205072,0.00018238,2]
[423779983,1780422651000,-1160.03652822,0.00018323,2]
[423779987,1780422651000,-516.55,0.00018356,2]
[423779982,1780422651000,-258.31635928,0.00018238,2]
[423779984,1780422651000,-871.42320517,0.00018351,2]
[423779980,1780422651000,-329.43470606,0.0001821,2]
[423779989,1780422651000,-310.05,0.00018356,2]
[423779988,1780422651000,-534.04,0.00018356,2]
[423779990,1780422651000,-500.0,0.00018356,2]
[423779992,1780422651000,-500.0,0.00018356,2]
[423779991,1780422651000,-733.53,0.00018356,2]
[423779993,1780422651000,-856.75,0.00018356,2]
[423779995,1780422651000,-500.0,0.00018356,2]
[423779994,1780422651000,-990.06,0.00018356,2]
[423779928,1780422651000,-2279.37,0.00017808,2]
[423779963,1780422651000,-516.55,0.00018082,2]
[423779961,1780422651000,-288.39658361,0.00018005,2]
[423779986,1780422651000,-500.0,0.00018356,2]
[423779972,1780422651000,-421.45,0.00018082,2]
[423779965,1780422651000,-500.0,0.00018082,2]
[423779931,1780422651000,-233.75176188,0.00017902,3]
[423779938,1780422651000,-602.1072246,0.00017983,2]
[423779933,1780422651000,-172.25690428,0.00017971,2]
[423779941,1780422651000,-403.15210918,0.00017983,2]
[423779945,1780422651000,-158.91771969,0.00017983,2]
[423779943,1780422651000,-490.86768969,0.00017983,2]
[423779948,1780422651000,-1694.67,0.00018,2]
[423779947,1780422651000,-659.47099773,0.00017999,2]
[423779944,1780422651000,-494.96866561,0.00017983,2]
[423779946,1780422651000,-697.13856414,0.00017999,2]
[423779942,1780422651000,-444.6908695,0.00017983,2]
[423779949,1780422651000,-151.0,0.00018,2]
[423779951,1780422651000,-673.58131137,0.00018003,2]
[423779935,1780422651000,-156.53972117,0.00017971,2]
[423779973,1780422651000,-539.15,0.00018082,2]
[423779966,1780422651000,-500.0,0.00018082,2]
[423779964,1780422651000,-500.0,0.00018082,2]
[423779962,1780422651000,-500.0,0.00018082,2]
[423779955,1780422651000,-411.97481422,0.00018003,2]
[423779958,1780422651000,-618.81331866,0.00018003,2]
[423779950,1780422651000,-584.91858504,0.00018003,2]
[423779959,1780422651000,-560.24363298,0.00018003,2]
[423779957,1780422651000,-626.33645861,0.00018003,2]
[423779954,1780422651000,-483.85601944,0.00018003,2]
[423779953,1780422651000,-185.5411335,0.00018003,2]
[423779956,1780422651000,-540.52609943,0.00018003,2]
[423779952,1780422651000,-445.86473099,0.00018003,2]
[423779960,1780422651000,-631.515928,0.00018003,2]
[423780031,1780422652000,-1772.17159044,0.000188,2]
[423780041,1780422652000,-516.55,0.00018904,2]
[423780040,1780422652000,-164.02470756,0.00018904,2]
[423780036,1780422652000,-10000.0,0.00018862,2]
[423780035,1780422652000,-270.09212425,0.00018862,2]
[423780024,1780422652000,-215.49,0.0001863,2]
[423780034,1780422652000,-1392.04383387,0.0001885,2]
[423780033,1780422652000,-190.34962631,0.000188,2]
[423780032,1780422652000,-3963.13322945,0.000188,2]
[423780030,1780422652000,-802.41041483,0.000188,2]
[423780023,1780422652000,-539.15,0.0001863,2]
[423780038,1780422652000,-989.2064966,0.00018879,2]
[423780039,1780422652000,-1008.58012844,0.00018884,2]
[423780037,1780422652000,-7584.90364671,0.00018862,2]
[423780053,1780422652000,-151.5,0.00018904,2]
[423780048,1780422652000,-292.52238375,0.00018904,2]
[423780049,1780422652000,-500.0,0.00018904,2]
[423780051,1780422652000,-151.5,0.00018904,2]
[423780050,1780422652000,-349.70006729,0.00018904,2]
[423780044,1780422652000,-856.75,0.00018904,2]
[423780052,1780422652000,-539.15,0.00018904,2]
[423780042,1780422652000,-500.0,0.00018904,2]
[423780045,1780422652000,-990.06,0.00018904,2]
[423780046,1780422652000,-500.0,0.00018904,2]
[423780047,1780422652000,-205.5241143,0.00018904,2]
[423780054,1780422652000,-151.5,0.00018904,2]
[423780056,1780422652000,-151.5,0.00018904,2]
[423780060,1780422652000,-500.0,0.00018904,2]
[423780043,1780422652000,-733.53,0.00018904,2]
[423780025,1780422652000,-643.43,0.0001863,2]
[423780000,1780422652000,-1116.59,0.00018356,2]
[423780022,1780422652000,-500.0,0.0001863,2]
[423780057,1780422652000,-215.04220334,0.00018904,2]
[423779999,1780422652000,-2279.37,0.00018356,2]
[423780001,1780422652000,-160.0,0.00018387,2]
[423779996,1780422652000,-539.15,0.00018356,2]
[423779997,1780422652000,-500.0,0.00018356,2]
[423779998,1780422652000,-500.0,0.00018356,2]
[423780003,1780422652000,-1772.17159044,0.000184,2]
[423780002,1780422652000,-160.0,0.00018387,2]
[423780005,1780422652000,-3963.13322945,0.000184,2]
[423780014,1780422652000,-151.0,0.000186,2]
[423780004,1780422652000,-802.41041483,0.000184,2]
[423780008,1780422652000,-315.0,0.00018521,2]
[423780006,1780422652000,-190.34962631,0.000184,2]
[423780007,1780422652000,-692.625873,0.00018493,2]
[423780009,1780422652000,-802.41041483,0.000186,2]
[423780013,1780422652000,-151.0,0.000186,2]
[423780011,1780422652000,-3963.13322945,0.000186,2]
[423780012,1780422652000,-190.34962631,0.000186,2]
[423780015,1780422652000,-216.02689862,0.0001863,2]
[423780010,1780422652000,-1772.17159044,0.000186,2]
[423780017,1780422652000,-500.0,0.0001863,2]
[423780019,1780422652000,-500.0,0.0001863,2]
[423780016,1780422652000,-516.55,0.0001863,2]
[423780020,1780422652000,-856.75,0.0001863,2]
[423780027,1780422652000,-1116.59,0.0001863,2]
[423780028,1780422652000,-3025.39,0.0001863,2]
[423780029,1780422652000,-300.0,0.00018773,2]
[423780018,1780422652000,-733.53,0.0001863,2]
[423780021,1780422652000,-990.06,0.0001863,2]
[423780026,1780422652000,-2279.37,0.0001863,2]
[423780059,1780422652000,-500.0,0.00018904,2]
[423780055,1780422652000,-151.5,0.00018904,2]
[423780058,1780422652000,-500.0,0.00018904,2]
[423780104,1780422652000,-153.373394,0.00019178,2]
[423780105,1780422652000,-3025.39,0.00019178,2]
[423780093,1780422652000,-2279.37,0.00019178,2]
[423780096,1780422652000,-151.0,0.00019178,2]
[423780099,1780422652000,-151.0,0.00019178,2]
[423780102,1780422652000,-151.0,0.00019178,2]
[423780098,1780422652000,-151.0,0.00019178,2]
[423780095,1780422652000,-151.0,0.00019178,2]
[423780100,1780422652000,-151.0,0.00019178,2]
[423780097,1780422652000,-151.0,0.00019178,2]
[423780101,1780422652000,-151.0,0.00019178,2]
[423780103,1780422652000,-151.0,0.00019178,2]
[423780107,1780422652000,-151.0,0.000192,2]
[423780106,1780422652000,-151.0,0.000192,2]
[423780117,1780422652000,-1931.93,0.000194,2]
[423780119,1780422652000,-160.55,0.00019452,2]
[423780108,1780422652000,-151.0,0.000192,2]
[423780112,1780422652000,-3963.13322945,0.000193,2]
[423780113,1780422652000,-600.0,0.00019379,2]
[423780110,1780422652000,-456.614,0.00019228,2]
[423780118,1780422652000,-516.55,0.00019452,2]
[423780109,1780422652000,-151.0,0.000192,2]
[423780111,1780422652000,-1772.17159044,0.000193,2]
[423780115,1780422652000,-866.27,0.000194,2]
[423780062,1780422652000,-500.0,0.00018904,2]
[423780116,1780422652000,-850.5763,0.000194,2]
[423780121,1780422652000,-856.75,0.00019452,2]
[423780122,1780422652000,-900.12791717,0.00019452,2]
[423780120,1780422652000,-733.53,0.00019452,2]
[423780094,1780422652000,-1116.59,0.00019178,2]
[423780090,1780422652000,-990.06,0.00019178,2]
[423780114,1780422652000,-583.84,0.000194,2]
[423780089,1780422652000,-856.75,0.00019178,2]
[423780063,1780422652000,-500.0,0.00018904,2]
[423780064,1780422652000,-500.0,0.00018904,2]
[423780061,1780422652000,-500.0,0.00018904,2]
[423780065,1780422652000,-500.0,0.00018904,2]
[423780066,1780422652000,-500.0,0.00018904,2]
[423780068,1780422652000,-2279.37,0.00018904,2]
[423780078,1780422652000,-579.49,0.00019,2]
[423780079,1780422652000,-158.0,0.00019,2]
[423780067,1780422652000,-277.71993064,0.00018904,2]
[423780069,1780422652000,-1116.59,0.00018904,2]
[423780077,1780422652000,-160.0,0.00019,7]
[423780071,1780422652000,-24784.71842119,0.00019,2]
[423780074,1780422652000,-1772.17159044,0.00019,2]
[423780080,1780422652000,-802.41041483,0.000191,2]
[423780072,1780422652000,-5376.96831605,0.00019,7]
[423780088,1780422652000,-733.53,0.00019178,2]
[423780073,1780422652000,-802.41041483,0.00019,2]
[423780083,1780422652000,-190.34962631,0.000191,2]
[423780085,1780422652000,-300.0,0.00019178,2]
[423780084,1780422652000,-10573.51608996,0.0001916,2]
[423780082,1780422652000,-3963.13322945,0.000191,2]
[423780087,1780422652000,-500.0,0.00019178,2]
[423780092,1780422652000,-539.15,0.00019178,2]
[423780086,1780422652000,-516.55,0.00019178,2]
[423780075,1780422652000,-3963.13322945,0.00019,2]
[423780070,1780422652000,-3025.39,0.00018904,2]
[423780091,1780422652000,-500.0,0.00019178,2]
[423780081,1780422652000,-1772.17159044,0.000191,2]
[423780076,1780422652000,-190.34962631,0.00019,2]
[423780124,1780422653000,-500.0,0.00019452,2]
[423780123,1780422653000,-89.93208283,0.00019452,2]
[423780132,1780422653000,-1136.45121643,0.00019676,2]
[423780127,1780422653000,-1116.59,0.00019452,2]
[423780125,1780422653000,-539.15,0.00019452,2]
[423780130,1780422653000,-3963.13322945,0.000195,2]
[423780131,1780422653000,-1624.05113951,0.00019642,2]
[423780128,1780422653000,-3025.39,0.00019452,2]
[423780129,1780422653000,-1772.17159044,0.000195,2]
[423780133,1780422653000,-863.85847147,0.000197,2]
[423780126,1780422653000,-2279.37,0.00019452,2]
[423780134,1780422653000,-252.192,0.000197,2]
[423780136,1780422653000,-2463.09258866,0.000197,2]
[423780146,1780422653000,-3652.39590425,0.00012803,2]
[423780135,1780422653000,-656.12111897,0.000197,2]
[423780144,1780422653000,-18.26435012,0.00010634,2]
[423780142,1780422653000,-2119.25919702,0.00010634,2]
[423780143,1780422653000,-2862.47645286,0.00010634,2]
[423780145,1780422653000,-1257.11755133,0.00012803,2]
[423780140,1780422653000,-585.243046,0.00012803,2]
[423780139,1780422653000,-1634.63594125,0.00012803,2]
[423780138,1780422653000,-0.0009345,0.00012803,2]
[423780137,1780422653000,-2333.18114726,0.00012803,2]
[423780141,1780422653000,-867.84741846,0.00012803,2]
[423780241,1780423610000,-238.50405005,0.00011406,2]
[423780284,1780423832000,-1801.85259405,0.00010641,2]
[423780546,1780423838000,-446.76690044,0.000126,2]
[423780542,1780423838000,-300.0,0.00012281,2]
[423780544,1780423838000,-2074.665415,0.00012566,2]
[423780547,1780423838000,-53039.91657282,0.00012601,2]
[423780550,1780423838000,-27586.0869185,0.00012703,2]
[423780559,1780423838000,-422.05972355,0.00013233,14]
[423780553,1780423838000,-52110.77587445,0.00012803,2]
[423780557,1780423838000,-2074.665415,0.00013095,2]
[423780551,1780423838000,-151.41,0.000128,2]
[423780555,1780423838000,-600.0,0.00013058,2]
[423780532,1780423838000,-5350.6026679,0.00011825,2]
[423780566,1780423838000,-500.0,0.00013698,2]
[423780540,1780423838000,-381.0,0.00012281,2]
[423780525,1780423838000,-670.0,0.00011178,2]
[423780527,1780423838000,-8836.46299765,0.00011406,2]
[423780530,1780423838000,-165.4937,0.00011803,2]
[423780529,1780423838000,-1725.48462159,0.00011703,2]
[423780538,1780423838000,-370.08273035,0.00012147,7]
[423780536,1780423838000,-151.41,0.00012,2]
[423780517,1780423838000,-161.31063823,0.00010967,2]
[423780519,1780423838000,-300.0,0.00011178,2]
[423780514,1780423838000,-5000.0,0.00010748,2]
[423780521,1780423838000,-300.0,0.00011178,2]
[423780523,1780423838000,-300.0,0.00011178,2]
[423780516,1780423838000,-5000.0,0.00010857,2]
[423780512,1780423838000,-3198.14740595,0.00010641,2]
[423780534,1780423838000,-159.4920842,0.00011923,2]
[423780561,1780423838000,-183.0,0.00013236,2]
[423780578,1780423838000,-574.87080206,0.00013698,2]
[423780565,1780423838000,-2074.665415,0.00013624,2]
[423780606,1780423838000,-501.14916103,0.00013698,2]
[423780602,1780423838000,-500.0,0.00013698,2]
[423780608,1780423838000,-500.0,0.00013698,2]
[423780617,1780423838000,-500.0,0.00013698,2]
[423780604,1780423838000,-160.62755025,0.00013698,2]
[423780614,1780423838000,-500.0,0.00013698,2]
[423780610,1780423838000,-500.0,0.00013698,2]
[423780615,1780423838000,-501.26179018,0.00013698,2]
[423780600,1780423838000,-500.0,0.00013698,2]
[423780596,1780423838000,-500.0,0.00013698,2]
[423780594,1780423838000,-500.0,0.00013698,2]
[423780591,1780423838000,-500.0,0.00013698,2]
[423780611,1780423838000,-169.58921409,0.00013698,2]
[423780593,1780423838000,-500.0,0.00013698,2]
[423780598,1780423838000,-500.0,0.00013698,2]
[423780572,1780423838000,-500.14112481,0.00013698,2]
[423780568,1780423838000,-500.0,0.00013698,2]
[423780570,1780423838000,-334.27270604,0.00013698,2]
[423780585,1780423838000,-500.0,0.00013698,2]
[423780574,1780423838000,-500.0,0.00013698,2]
[423780563,1780423838000,-151.41,0.000136,2]
[423780589,1780423838000,-500.0,0.00013698,2]
[423780581,1780423838000,-500.0,0.00013698,2]
[423780579,1780423838000,-500.0,0.00013698,2]
[423780576,1780423838000,-500.0,0.00013698,2]
[423780587,1780423838000,-500.0,0.00013698,2]
[423780583,1780423838000,-500.0,0.00013698,2]
[423780713,1780423839000,-500.0,0.00013698,2]
[423780711,1780423839000,-500.0,0.00013698,2]
[423780707,1780423839000,-500.0,0.00013698,2]
[423780709,1780423839000,-501.06310409,0.00013698,2]
[423780704,1780423839000,-174.11201246,0.00013698,2]
[423780701,1780423839000,-500.0,0.00013698,2]
[423780697,1780423839000,-500.0,0.00013698,2]
[423780699,1780423839000,-508.22126743,0.00013698,2]
[423780717,1780423839000,-500.0,0.00013698,2]
[423780691,1780423839000,-558.59583522,0.00013698,2]
[423780683,1780423839000,-500.0,0.00013698,2]
[423780685,1780423839000,-500.0,0.00013698,2]
[423780681,1780423839000,-500.0,0.00013698,2]
[423780702,1780423839000,-500.0,0.00013698,2]
[423780693,1780423839000,-500.0,0.00013698,2]
[423780735,1780423839000,-500.0,0.00013698,2]
[423780719,1780423839000,-500.0,0.00013698,2]
[423780724,1780423839000,-500.0,0.00013698,2]
[423780721,1780423839000,-174.78478396,0.00013698,2]
[423780726,1780423839000,-500.0,0.00013698,2]
[423780729,1780423839000,-500.0,0.00013698,2]
[423780731,1780423839000,-500.0,0.00013698,2]
[423780728,1780423839000,-500.0,0.00013698,2]
[423780737,1780423839000,-500.0,0.00013698,2]
[423780738,1780423839000,-500.0,0.00013698,2]
[423780746,1780423839000,-500.0,0.00013698,2]
[423780733,1780423839000,-500.0,0.00013698,2]
[423780695,1780423839000,-500.0,0.00013698,2]
[423780744,1780423839000,-500.0,0.00013698,2]
[423780742,1780423839000,-500.0,0.00013698,2]
[423780723,1780423839000,-500.0,0.00013698,2]
[423780689,1780423839000,-211.42446007,0.00013698,2]
[423780653,1780423839000,-500.0,0.00013698,2]
[423780687,1780423839000,-500.0,0.00013698,2]
[423780620,1780423839000,-501.98856139,0.00013698,2]
[423780624,1780423839000,-500.0,0.00013698,2]
[423780621,1780423839000,-503.16809704,0.00013698,2]
[423780638,1780423839000,-500.0,0.00013698,2]
[423780639,1780423839000,-500.0,0.00013698,2]
[423780629,1780423839000,-500.0,0.00013698,2]
[423780643,1780423839000,-500.0,0.00013698,2]
[423780627,1780423839000,-500.0,0.00013698,2]